Cogmind - Beta 15 @@@ ROGUE MODE // 2025.06.17 @ 13:02:21 Player: the Result: Smashed by cave-in Performance ------------- Evolutions (0) 0 Regions Visited (2) 400 Robots Destroyed (21) 105 Value Destroyed (482) 482 Prototype IDs (0) 0 Alien Tech Used (0) 0 Bonus (0) 0 TOTAL SCORE: 987 Bonus ------- None Cogmind --------- Core Integrity 0/250 Matter 171/300 Energy 77/200 System Corruption 0% Temperature Cool (0) Movement Rolling (95) Location -10/Subcaves Parts ------- > --- POWER (1) -------- Subdweller Power Source > --- PROPULSION (2) --- Wheel Subdweller Monowheel > --- UTILITY (2) ------ Disposable Heat Sink Small Storage Unit > --- WEAPON (2) ------- Subdweller Beam Cannon Subdweller Beam Cannon > --- INVENTORY (8) ---- Subdweller Monowheel Subdweller Monowheel Improved Heat Sink Improved Heat Sink Seismic Detector Scrap Shield Subdweller Laser Peak State ------------ > --- POWER ------------ Subdweller Power Source > --- PROPULSION ------- Wheel Subdweller Monowheel > --- UTILITY ---------- Disposable Heat Sink Small Storage Unit > --- WEAPON ----------- Subdweller Laser Subdweller Shrapnel Launcher > --- INVENTORY -------- Wheel Wheel Subdweller Monowheel Improved Heat Sink Improved Heat Sink Disposable Heat Sink Seismic Detector Makeshift Hammer [Rating: 13] Favorites ----------- Power Light Ion Engine Engine Light Ion Engine Propulsion Light Treads Treads Light Treads Wheel Wheel Utility Small Storage Unit Device Disposable Heat Sink Storage Small Storage Unit Weapon Assault Rifle Energy Gun Subdweller Laser Energy Cannon Subdweller Beam Cannon Ballistic Gun Assault Rifle Launcher Subdweller Shrapnel Launcher Special Weapon Flamer Impact Weapon Makeshift Hammer Build | -11 -10 -10 ------- Run | Yrd Mat Sub Slots Evolved . | . . . Power . | . . . Propulsion . | . . . Utility . | . . . Weapon . | . . . Parts Attached 29 | 7 2 20 Power 3 | 1 . 2 Engine 3 | 1 . 2 Core . | . . . Reactor . | . . . Propulsion 9 | 2 2 5 Treads 2 | 2 . . Leg . | . . . Wheel 7 | . 2 5 Hover . | . . . Flight . | . . . Utility 3 | 2 . 1 Device 2 | 1 . 1 Storage 1 | 1 . . Processor . | . . . Hackware . | . . . Protection . | . . . Artifact . | . . . Weapon 14 | 2 . 12 Energy Gun 1 | . . 1 Energy Cannon 3 | . . 3 Ballistic Gun 5 | 2 . 3 Ballistic Cannon . | . . . Launcher 1 | . . 1 Special Weapon 3 | . . 3 Impact Weapon 1 | . . 1 Slashing Weapon . | . . . Piercing Weapon . | . . . Special Melee Weapon . | . . . Unidentified Prototypes . | . . . Parts Lost 6 | . . 6 Power 1 | . . 1 Propulsion 2 | . . 2 Utility . | . . . Weapon 3 | . . 3 Highest Loss Streak 4 | . . 4 To Critical Strikes . | . . . Average Backups 7 | 4 8 7 Power . | . 1 . Propulsion 3 | 1 4 3 Utility 2 | . 1 2 Weapon 1 | 1 2 1 Tool/Special . | . . . Unused Backups 10 | 1 . 9 Power . | . . . Propulsion 2 | 1 . 1 Utility 6 | . . 6 Weapon 2 | . . 2 Tool/Special . | . . . Average Slot Usage (%) 97 | . 100 97 Engine 12 | . 14 12 Treads 12 | . 11 12 Wheel 15 | . 16 15 Device 14 | . 14 14 Storage 14 | . 14 14 Energy Gun 3 | . . 3 Energy Cannon 4 | . . 4 Ballistic Gun 7 | . 28 7 Launcher 3 | . . 3 Special Weapon 8 | . . 8 Peak Build Rating 13 | 7 7 13 Average Rating 10 | 6 7 10 On Entrance 4 | . 7 7 Naked Turns . | . . . Heaviest Build 27 | 13 13 27 Greatest Support 40 | 40 40 40 Greatest Overweight (x) 1 | 1 . 1 Average Overweight (x) . | . . . Largest Inventory Capacity 8 | 8 8 8 Average Capacity 7 | 7 8 8 Most Carried 8 | 8 8 8 Average Carried 7 | 4 8 7 Final Capacity 8 | 8 8 8 Final Carried 8 | 8 8 8 Class Distribution -------------------- 75% | Mutant 24% | Scavenger-Mutant Dominant Class ---------------- Mutant | -10/Materials Mutant | -10/Subcaves Resources | -11 -10 -10 ----------- Run | Yrd Mat Sub Matter Collected 880 | 348 . 532 Remotely . | . . . Salvage Created 578 | 179 . 399 Parts 46 | 21 . 25 Haulers Intercepted . | . . . Recyclers Shooed . | . . . Parts Field Recycled . | . . . Retrieved Matter . | . . . Parts Self-Destructed 13 | . . 13 Prevented . | . . . Kills | -11 -10 -10 ------- Run | Yrd Mat Sub Combat Hostiles Destroyed 14 | . . 14 Guns 5 | . . 5 Cannons 6 | . . 6 AOE 3 | . . 3 Classes Destroyed 5 | 3 . 2 Worker 1 | 1 . . Tunneler 5 | 5 . . Recycler 1 | 1 . . Swarmer 4 | . . 4 Subdweller 10 | . . 10 Best Kill Streak 4 | 2 . 4 Combat Bots Only 4 | . . 4 Max Kills in Single Turn 1 | 1 . 1 Gunslinging . | . . . Exploded 1 | . . 1 Melee . | . . . Uniques/NPCs Destroyed . | . . . Combat | -11 -10 -10 -------- Run | Yrd Mat Sub Hostile Shots Fired 75 | . . 75 Missed 19 | . . 19 Hits 56 | . . 56 Projectile 56 | . . 56 Damage Taken 1131 | . . 1131 Core 266 | . . 266 Absorbed by Shields . | . . . Core Remaining (%) 100 | 100 . . Volleys Fired 80 | 13 1 66 Largest 2 | 2 2 2 Hottest 200 | 40 40 200 Shots Fired 129 | 26 2 101 Gun 65 | 26 2 37 Cannon 32 | . . 32 Launcher 14 | . . 14 Special 18 | . . 18 Kinetic 72 | 26 2 44 Thermal 57 | . . 57 Explosive . | . . . Electromagnetic . | . . . Robot Hit Streak 18 | 3 3 18 Robot Miss Streak 6 | 6 1 2 Penetration Max . | . . . Secondary Targets 1 | . . 1 Max Gunslinging Chain 1 | . . 1 Shots Hit Robots 59 | 12 1 46 Core Hits 25 | 7 . 18 Critical Kills 1 | . . 1 Critical Parts Destroyed . | . . . Critical Strikes 1 | . . 1 Destroy 1 | . . 1 Melee Attacks 3 | . . 3 Impact 3 | . . 3 Slashing . | . . . Piercing . | . . . Sneak Attacks . | . . . Combat Hostiles . | . . . Follow-up Attacks . | . . . Damage Inflicted 1298 | 163 12 1123 Guns 517 | 163 12 342 Cannons 264 | . . 264 Explosions 462 | . . 462 Melee . | . . . Ramming . | . . . Kinetic 865 | 163 12 690 Thermal 433 | . . 433 Explosive . | . . . Electromagnetic . | . . . Impact . | . . . Slashing . | . . . Piercing . | . . . Highest Corruption . | . . . Average Corruption . | . . . Corruption Purged . | . . . Corruption Blocked . | . . . Overload Shots . | . . . Overflow Damage 21 | . . 21 Projectiles 17 | . . 17 Explosions 4 | . . 4 Melee . | . . . Knockbacks . | . . . Impact . | . . . Kinetic . | . . . Secondary . | . . . Self-Inflicted Damage 3 | . . 3 Shots 1 | . . 1 Rammed . | . . . Targets Rammed . | . . . Kicked . | . . . Crushed . | . . . Highest Temperature 120 | . . 120 Average Temperature 50 | . . 50 Received Heat Transfer 129 | . . 129 Siege Activations . | . . . Martial Activations . | . . . Shielding Activations . | . . . Robots Disrupted . | . . . Combat Hostiles . | . . . Robots Corrupted . | . . . Combat Hostiles . | . . . Parts Fried . | . . . Impact Corruptions . | . . . Robots Melted . | . . . Combat Hostiles . | . . . Parts Melted . | . . . Heat Transferred 920 | . . 920 Parts Sabotaged . | . . . Parts Stolen . | . . . Parts Stripped . | . . . Power Chain Reactions . | . . . Alert | -11 -10 -10 ------- Run | Yrd Mat Sub Maximum Alert Level . | . . . Low Security (%) 100 | 100 100 . Level 1 . | . . . Level 2 . | . . . Level 3 . | . . . Level 4 . | . . . Level 5 . | . . . High Security . | . . . Max Security . | . . . Peak Influence 10 | 10 . . Initial . | . . . Average 1 | 1 . . Influence Increases 145 | 35 . 110 Destroy 0b10 Robot/C 80 | . . 80 Destroy 0b10 Robot/NC 35 | 35 . . Lose Combat Pursuer 30 | . . 30 Influence Decreases 48 | 35 . 13 Time Decay 48 | 35 . 13 Squads Dispatched . | . . . Investigation . | . . . Extermination . | . . . Reinforcement . | . . . Assault . | . . . Garrison . | . . . Intercept . | . . . Searches Triggered . | . . . Construction Impeded . | . . . Haulers Reinforced . | . . . Active Scanning Responses . | . . . Cargo Convoy Interrupts . | . . . Stealth | -11 -10 -10 --------- Run | Yrd Mat Sub Distress Signals . | . . . Communications Jammed . | . . . Distress Signals . | . . . Times Spotted 20 | . . 20 Peak Tracking Total 6 | . . 6 Tactical Retreats 1 | . . 1 Traps | -11 -10 -10 ------- Run | Yrd Mat Sub Traps Triggered 1 | . . 1 Indirectly . | . . . Trap Hack Attempts . | . . . Triggered . | . . . Disarmed . | . . . Reprogrammed . | . . . Reused . | . . . Traps Extracted . | . . . Installed . | . . . Triggered . | . . . Machines | -11 -10 -10 ---------- Run | Yrd Mat Sub Machines Disabled . | . . . Max in Single Turn . | . . . Machines Repaired . | . . . Machines Dismantled . | . . . Machines Sabotaged . | . . . Overloaded Fab Kills . | . . . Hacking | -11 -10 -10 --------- Run | Yrd Mat Sub Machines Accessed 1 | . . 1 Terminals . | . . . Fabricators . | . . . Repair Stations . | . . . Recycling Units . | . . . Scanalyzers . | . . . Garrison Access . | . . . Total Hacks 5 | . . 5 Successful 5 | . . 5 Failed . | . . . Catastrophic . | . . . Database Lockouts . | . . . Manual . | . . . Terminals . | . . . Fabricators . | . . . Repair Stations . | . . . Recycling Units . | . . . Scanalyzers . | . . . Garrison Access . | . . . Terminal Hacks 5 | . . 5 Record 5 | . . 5 Fabricator Hacks . | . . . Repair Station Hacks . | . . . Recycling Unit Hacks . | . . . Scanalyzer . | . . . Garrison Access Hacks . | . . . Unauthorized Hacks . | . . . Terminals . | . . . Fabricators . | . . . Repair Stations . | . . . Recycling Units . | . . . Scanalyzers . | . . . Garrison Access . | . . . Data Cores Recovered . | . . . Used . | . . . Hacking Detections . | . . . Full Trace Events . | . . . Feedback Events . | . . . Feedback Blocked . | . . . Robot Schematics Acquired . | . . . Robots Built . | . . . Authchips . | . . . Time . | . . . Total Robot Build Rating . | . . . Part Schematics Acquired . | . . . Parts Built . | . . . Authchips . | . . . Time . | . . . Total Part Build Rating . | . . . Parts Repaired . | . . . Time . | . . . Parts Recycled . | . . . Recycled Matter . | . . . Retrieved Matter . | . . . Retrieved Components . | . . . Parts Scanalyzed . | . . . Part Schematics Acquired . | . . . Parts Damaged . | . . . Bothacking | -11 -10 -10 ------------ Run | Yrd Mat Sub Used RIF Installer . | . . . Robots Hacked . | . . . Non-combat . | . . . Combat . | . . . Robot Hacks Applied . | . . . Relay Couplers Released . | . . . Fabnet Peak Effective % . | . . . Robots Rewired . | . . . Allies Hacked . | . . . Hacks Repelled . | . . . Allies | -11 -10 -10 -------- Run | Yrd Mat Sub Total Allies . | . . . Largest Group . | . . . Highest-Rated Group . | . . . Highest-Rated Ally . | . . . Total Orders . | . . . Ally Attacks . | . . . Total Damage . | . . . Kills . | . . . Allies Corrupted . | . . . Allies Melted . | . . . Intel | -11 -10 -10 ------- Run | Yrd Mat Sub Active Infowar (turns) 1151 | 175 43 933 Seismic 1151 | 175 43 933 Robot Analysis Total . | . . . Derelict Logs Recovered 1 | . . 1 Drone Launches . | . . . Drone Recoveries . | . . . Exploration | -11 -10 -10 ------------- Run | Yrd Mat Sub Turns Passed 3436 | 244 43 3149 Spaces Moved 2688 | 119 32 2537 Core 5 | 5 . . Treads 875 | 114 7 754 Legs . | . . . Wheels 1808 | . 25 1783 Hover . | . . . Flight . | . . . Fastest Speed 50 | 50 80 80 Average Speed 111 | 156 97 109 Slowest Speed 160 | 160 160 160 Overloaded Moves . | . . . Propulsion Burnouts . | . . . Robots Hopped . | . . . Potential Cave-ins 5 | . . 5 Cave-ins Triggered 1 | . . 1 Exploration Rate (%) 36 | 6 10 93 Regions Visited 2 Branch Regions 1 Pre-discovered Areas 1 | . . 1 Known Exits Taken . | . . . Unknown Exits Taken 2 | 1 1 . Scrap Searched . | . . . Spaces Dug 39 | . . 39 Terrain Destroyed 185 | . . 185 Melee . | . . . Projectile 14 | . . 14 AOE 171 | . . 171 Terrain Rammed . | . . . Walls Destroyed . | . . . Machines Disabled . | . . . Actions | -11 -10 -10 --------- Run | Yrd Mat Sub Total 2965 | 148 40 2777 Wait 111 | . 6 105 Move 2685 | 118 31 2536 Hop . | . . . Pick Up 26 | 9 . 17 Fast Attach 14 | 7 . 7 Attach 5 | . . 5 Detach 1 | . . 1 Swap 18 | . 2 16 Drop 22 | 1 . 21 Fire 80 | 13 1 66 Melee 3 | . . 3 Ram . | . . . Kick . | . . . Crush . | . . . Escape Stasis . | . . . Rewire . | . . . Trap . | . . . Miscellaneous . | . . . Route ------- -11/Scrapyard -10/Materials -10/Subcaves (discovered 5 exits: [*Mat x2] / Rec / [*Scr x2]) History --------- Turn | Location | Event 33 | -11/Scrapyard | Discovered new exit (range 16) 245 | -11/Scrapyard | Entered Materials 246 | -10/Materials | Met a group of wandering Federalists 281 | -10/Materials | Discovered new exit (range 5) 288 | -10/Materials | Entered Subcaves 288 | -10/Subcaves | Accompanied by 3 allies 289 | -10/Subcaves | Continued accompanying wandering Federalists (4) 289 | -10/Subcaves | Approached by a straggling Scientist 331 | -10/Subcaves | Build established: Mutant 508 | -10/Subcaves | Wandering Federalist uncovered a shortcut to Scraptown 516 | -10/Subcaves | A swath of the cavern ceiling suddenly collapsed 673 | -10/Subcaves | Discovered new exit (range 10) 728 | -10/Subcaves | Shifting Twisted Machinery released Barrage Gun 1044 | -10/Subcaves | Shifting Twisted Machinery released Piercing Trap 1098 | -10/Subcaves | Scientist uncovered a shortcut to Scraptown 1134 | -10/Subcaves | A Subdweller sparked back to life 1134 | -10/Subcaves | A Subdweller sparked back to life 1134 | -10/Subcaves | A Subdweller sparked back to life 1785 | -10/Subcaves | Visited Clippyterm 1787 | -10/Subcaves | Learned 40 Factory zone layouts 1787 | -10/Subcaves | Learned location of Extension (-6) 2002 | -10/Subcaves | Core integrity fell below 50% 2036 | -10/Subcaves | Lost 4 parts (1p1n2w) 2078 | -10/Subcaves | Shifting Twisted Machinery released Mak. Hammer 2084 | -10/Subcaves | Shifting Twisted Machinery released Riot Gun 2386 | -10/Subcaves | Identified exit to Recycling 2394 | -10/Subcaves | Discovered new exit (range 9) 2502 | -10/Subcaves | Build established: Scavenger-Mutant 3024 | -10/Subcaves | Ambushed by Subdweller buried in earth 3177 | -10/Subcaves | Core integrity fell below 20% 3211 | -10/Subcaves | Build established: Mutant 3437 | -10/Subcaves | Crushed by falling debris 3437 | -10/Subcaves | Smashed by cave-in Last Messages --------------- 03167_ Sub. Shrapnel Launcher shoots sparks and powers down. 03170_ Acquired 40 matter. 03176_ S-10 Pest destroyed. 03179_ Destroyed Flight Unit. 03182_ Subatomizers dissect the Sub. Machine Gun. 03182_ S-10 Pest destroyed. 03185_ Destroyed Lgt. Ion Engine. 03185_ S-10 Pest destroyed. 03191_ Acquired 26 matter. 03202_ Flight Unit fries itself beyond repair. 03249_ Dropped Broken Sub. Shrapnel Launcher. 03255_ Acquired Seismic Detector. 03278_ Acquired Sub. Laser. 03324_ Acquired Sub. Monowheel. 03327_ Dropped Sub. Laser. 03327_ Acquired Sub. Laser. 03437_ The unstable cave ceiling collapses. 03437_ Crushed by falling debris. Map ----- +----------------------------------------------------+ | ?????????## #??# #??????????????? | | ????????### ##??# #??????????????? | | ???????## ##??### ###??????????????? | | ######## #????### #????????????????? | | #"""## #?????## ##???????????????? | | #"" ## ## ##???### #???????????????? | | #"X ### #####????# #???????????????? | | #"" ## ### ##???????# ## #??????????????? | | #"""### ## ##??????#### ### #?????????????? | | ####### ####?????## ### ##?????????????? | | # #????## ##??###??????????????? | | # ##???# #????????????????????? | | ## ## #???# #????????????????????? | | ?###### ##??## #????????????????????? | | ??????#### ##??# #????????????????????? | | ?????????# #??# #????????????????????? | | ?????##### ###### #????????????????????? | | ???## #####;; #????????????????????? | | ??## ### #### ##????????????????????? | | ??# ### #?????????????????????? | | ??# ##?????????????????????? | | ?# ##??????????????????????? | | ?# ### ## ######;##??????????????????????? | | ?## ??####?# ##????# #??????????????????????? | | ??## #???????###?????# ##?????????????????????? | | ???# #???????????????###@ ####??????????????????? | | ???###????????????????# # ##?????????????????? | | ???????????????????????# #?????????????????? | | ?????????????????????### ; #?????????????????? | | ?????????????????????# && #?????????????????? | | ????????????????????## ! ##?????????????????? | | ????????????????????# =[#??????????????????? | | ????????????????????# #??????????????????? | | ????????????????????# ##??????????????????? | | ????????????????????# #???????????????????? | | ????????????????????# ;;#???????????????????? | | ????????????????????## ##???????????????????? | | ?????????????????????# #????????????????????? | | ?????????????????????# ; #????????????????????? | | ?????????????????????#### #????????????????????? | | ???????????????????????## #????????????????????? | | ???????????????????????# #????????????????????? | | ???????????????????????## ##????????????????????? | | ???????????????????????## ##???????????????????? | | ???????????????????????# #???????????????????? | | ???????????????????????# ##?????????####????### | | ???????????????????????## #??????????# ###### # | | ???????????????????????## ###????????# ## | | ???????????????????????# #????????# | | ???????????????????????# #???????## | +----------------------------------------------------+ Best States ------------- Heat Dissipation 25 Coolant Potential 50 Energy Generation 15 Energy Capacity 250 Matter Stores 300 Matter Capacity 300 Sight Range 16 Terrain Scan Density 10 Evasion (%) 44 Recoil Reduction 2 Item Schematics ----------------- None Robot Schematics ------------------ None Fabricated ------------ Nothing Repaired ---------- Nothing Alien Tech Used ----------------- None Achievements -------------- None Challenges ------------ None Game ------ Seed MissileAssemblyArmor Manual? 0 Play Time 00:21:01 Cumulative 161.0 hours Start 2025.06.17 @ 12:17:56 End 2025.06.17 @ 13:02:21 Sessions 3 Manual Loads 0 Difficulty Rogue Special Mode None Game No. 112 Rogue 112 Adventurer 0 Explorer 0 Win Type - Total 1 Types 1/0/0/0/0/0/0/0/0/0 Lore% 57 Gallery% 54 Achievement% 48 Wizard Run 0 Options --------- Layout 1 ASCII 0 Keyboard 0 Movement Mouse Keybinds 0 Fullscreen 1 Font 24/Smallcaps Map View 50x35 Zoom Use 0% Tactical HUD 1 Map Filters NONE Filters NONE Steam 1 RUN: 7d30104f-beec-40e5-8681-87bd03528f0a